bitfinex-derivatives/quotes_BNBF0:USTF0_20250529
["timestamp","ask_amount","ask_price","bid_price","bid_amount"]
[1748480161401,0.28935603,691.19,690.46,1.60011652]
[1748480161598,0.28935603,691.19,690.47,1.60026823]
[1748480161796,0.28935603,691.19,690.48,1.60026823]
[1748480162098,0.28935603,691.19,690.49,1.60026823]
[1748480162299,0.28935603,691.19,690.5,1.60026823]
[1748480162500,0.28935603,691.19,690.51,1.59775712]
[1748480162801,0.28935603,691.19,690.52,1.59811557]
[1748480162998,0.28935603,691.19,690.53,1.59810003]
[1748480163194,0.28935603,691.19,690.54,1.59810003]
[1748480163400,0.28935603,691.19,690.55,1.59810003]
[1748480163595,0.28935603,691.19,690.56,1.59810349]
[1748480163802,0.28935603,691.19,690.45,0.623]
[1748480163803,0.28935603,691.19,690.57,1.59810349]
[1748480164002,0.28935603,691.19,690.58,1.59810349]
[1748480164202,0.28935603,691.19,690.59,1.59810349]
[1748480164400,0.28935603,691.19,690.6,0.56746618]
[1748480164708,0.28935603,691.19,690.61,1.59796772]
[1748480164901,0.28935603,691.19,690.45,0.623]
[1748480164902,0.28935603,691.19,690.62,1.59796207]
[1748480165105,0.28935603,691.19,690.45,0.623]
[1748480165106,0.28935603,691.19,690.63,1.59796207]
[1748480165305,0.28935603,691.19,690.64,1.59796207]
[1748480165509,0.28935603,691.19,690.65,1.59796153]
[1748480165706,0.28935603,691.19,690.66,1.597459]
[1748480166007,0.28935603,691.19,690.67,1.597459]
[1748480166202,0.28935603,691.19,690.68,1.597459]
[1748480166407,0.28935603,691.19,690.69,1.597459]
[1748480166702,0.28935603,691.19,690.7,1.59833051]
[1748480166906,0.28935603,691.19,690.71,1.59833051]
[1748480167099,0.28935603,691.19,690.72,1.59834889]
[1748480167301,0.28935603,691.19,690.45,0.623]
[1748480167302,0.28935603,691.19,690.73,1.59834889]
[1748480167502,0.28935603,691.19,690.45,0.623]
[1748480167702,0.28935603,691.19,690.46,1.59846697]
[1748480167903,0.28935603,691.19,690.47,1.59856712]
[1748480168104,0.28935603,691.19,690.48,1.59856712]
[1748480168300,0.28935603,691.19,690.49,1.59856712]
[1748480168502,0.28935603,691.19,690.5,1.59856712]
[1748480168704,0.28935603,691.19,690.51,1.59856712]
[1748480168906,0.28935603,691.19,690.52,0.56832957]
[1748480169109,0.28935603,691.19,690.53,1.0303365]
[1748480169304,0.28935603,691.19,690.54,1.59873189]
[1748480169505,0.28935603,691.19,690.55,1.59873189]
[1748480169708,0.28935603,691.19,690.56,1.59869228]
[1748480169904,0.28935603,691.19,690.57,1.59869228]
[1748480170209,0.28935603,691.19,690.58,1.59869228]
[1748480170506,0.28935603,691.19,690.59,1.59869228]
[1748480170703,0.28935603,691.19,690.6,1.03030352]
[1748480170908,0.28935603,691.19,690.61,0.56837443]
[1748480171106,0.28935603,691.19,690.62,1.59867872]
[1748480171307,0.28935603,691.19,690.63,1.59867872]
[1748480171504,0.28935603,691.19,690.64,0.56839232]
[1748480171705,0.28935603,691.19,690.65,1.59873836]
[1748480171911,0.28935603,691.19,690.66,1.59873836]
[1748480172110,0.28935603,691.19,690.67,1.59873836]
[1748480172311,0.28935603,691.19,690.68,1.59875465]
[1748480172511,0.28935603,691.19,690.69,1.59875465]
[1748480172716,0.28935603,691.19,690.7,1.59875465]
[1748480172916,0.28935603,691.19,690.45,0.623]
[1748480173113,0.28935603,691.19,690.46,0.56839104]
[1748480173313,0.28935603,691.19,690.47,1.59946467]
[1748480173506,0.28935603,691.19,690.48,1.59946961]
[1748480173816,0.28935603,691.19,690.45,0.623]
[1748480173817,0.28935603,691.19,690.49,1.59941956]
[1748480174107,0.28935603,691.19,690.5,1.59941956]
[1748480174407,0.28935603,691.19,690.51,1.59941956]
[1748480174607,0.28935603,691.19,690.52,0.56832688]
[1748480174812,0.28935603,691.19,690.45,0.623]
[1748480175025,0.28935603,691.19,690.46,1.59970963]
[1748480175210,0.28935603,691.19,690.47,1.59970963]
[1748480175408,0.28935603,691.19,690.48,1.59970963]
[1748480175607,0.28935603,691.19,690.49,1.59970963]
[1748480175808,0.28935603,691.19,690.5,1.59970963]
[1748480176015,0.28935603,691.19,690.51,1.59970963]
[1748480176209,0.28935603,691.19,690.52,1.59970963]
[1748480176414,0.28935603,691.19,690.53,0.56835249]
[1748480176617,0.28935603,691.19,690.54,0.56841934]
[1748480176812,0.28935603,691.19,690.55,1.60017419]
[1748480177036,0.28935603,691.19,690.56,1.60018471]
[1748480177315,0.28935603,691.19,690.57,1.60018471]
[1748480177511,0.28935603,691.19,690.37,0.56841155]
[1748480177512,0.28935603,691.19,690.58,1.0316992]
[1748480177716,0.28935603,691.19,690.59,1.60009864]
[1748480177918,0.28935603,691.19,690.6,1.60009864]
[1748480178118,0.28935603,691.19,690.61,1.0316992]
[1748480178317,0.28935603,691.19,690.62,1.60007889]
[1748480178514,0.28935603,691.19,690.63,0.56837889]
[1748480178714,0.28935603,691.19,690.64,1.59994243]
[1748480178914,0.28935603,691.19,690.65,1.59993998]
[1748480179114,0.28935603,691.19,690.66,1.59993998]
[1748480179318,0.28935603,691.19,690.67,1.59993998]
[1748480179626,0.28935603,691.19,690.68,1.59984463]
[1748480179822,0.28935603,691.19,690.69,1.59984463]
[1748480180031,0.28935603,691.19,690.58,0.517]
[1748480180619,0.28935603,691.19,690.59,1.59974982]
[1748480180829,0.28935603,691.19,690.58,0.517]
[1748480182219,0.28935603,691.19,690.59,0.56829863]
[1748480182419,0.28935603,691.19,690.6,1.03141336]
[1748480182621,0.28935603,691.19,690.61,1.59972287]
[1748480182820,0.28935603,691.19,690.62,1.59986676]
[1748480183023,0.28935603,691.19,690.63,1.5998683]
[1748480183223,0.28935603,691.19,690.64,1.5998683]
[1748480183520,0.28935603,691.19,690.65,1.03150532]
[1748480183725,0.28935603,691.19,690.66,1.59978744]
[1748480183925,0.28935603,691.19,690.58,0.517]
[1748480183926,0.28935603,691.19,690.67,1.59978744]
[1748480184132,0.28935603,691.19,690.68,1.59978744]
[1748480184326,0.28935603,691.19,690.69,1.59978744]
[1748480184527,0.28935603,691.19,690.7,1.59978744]
[1748480184723,0.28935603,691.19,690.71,1.59978744]
[1748480185029,0.28935603,691.19,690.58,0.517]
[1748480185030,0.28935603,691.19,690.72,1.59963321]
[1748480185233,0.28935603,691.19,690.73,1.59962291]
[1748480185522,0.28935603,691.19,690.58,0.517]
[1748480185523,0.28935603,691.19,690.74,1.59962291]
[1748480185726,0.28935603,691.19,690.75,1.59962291]
[1748480185930,0.28935603,691.19,690.76,1.59962291]
[1748480186125,0.28935603,691.19,690.77,0.56804864]
[1748480186330,0.28935603,691.19,690.78,1.5991031]
[1748480186524,0.28935603,691.19,690.79,1.5991031]
[1748480186723,0.28935603,691.19,690.8,1.59904627]
[1748480186927,0.28935603,691.19,690.81,1.59909539]
[1748480187124,0.28935603,691.19,690.82,0.56797656]
[1748480187329,0.28935603,691.19,690.83,1.59890011]
[1748480187536,0.28935603,691.19,690.84,1.59890011]
[1748480187839,0.28935603,691.19,690.85,1.59880052]
[1748480188136,0.28935603,691.19,690.86,1.59850621]
[1748480188332,0.28935603,691.19,690.87,1.59845807]
[1748480188528,0.28935603,691.19,690.88,0.5679279]
[1748480188727,0.28935603,691.19,690.58,0.517]
[1748480188728,0.28935603,691.19,690.89,1.03052311]
[1748480189032,0.28935603,691.19,690.9,1.03052311]
[1748480189241,0.28935603,691.19,690.91,1.03052311]
[1748480189534,0.28935603,691.19,690.92,1.03052311]
[1748480189829,0.28935603,691.19,690.93,1.0305824]
[1748480190033,0.28935603,691.19,690.94,1.0305824]
[1748480190237,0.28935603,691.19,690.58,0.517]
[1748480190635,0.28935603,691.19,690.59,1.59846618]
[1748480190834,0.28935603,691.19,690.6,1.59846618]
[1748480191033,0.28935603,691.19,690.61,1.59846618]
[1748480191236,0.28935603,691.19,690.62,1.59864116]
[1748480191436,0.28935603,691.19,690.63,0.56794873]
[1748480191732,0.28935603,691.19,690.64,1.59894935]
[1748480191933,0.28935603,691.19,690.65,1.03099418]
[1748480192133,0.28935603,691.19,690.58,0.517]
[1748480192134,0.28935603,691.19,690.66,1.59896449]
[1748480192343,0.28935603,691.19,690.67,1.5990127]
[1748480192635,0.28935603,691.19,690.68,1.5990127]
[1748480192835,0.28935603,691.19,690.69,1.5990127]
[1748480193032,0.28935603,691.19,690.7,1.5990385]
[1748480193232,0.28935603,691.19,690.71,1.03104476]
[1748480193436,0.28935603,691.19,690.72,1.03104476]
[1748480193640,0.28935603,691.19,690.73,1.59902673]
[1748480193837,0.28935603,691.19,690.74,1.59903177]
[1748480194032,0.28935603,691.19,690.75,1.5990164]
[1748480194235,0.28935603,691.19,690.76,1.5990164]
[1748480194537,0.28935603,691.19,690.77,1.5990164]
[1748480194739,0.28935603,691.19,690.78,1.5990164]
[1748480194938,0.28935603,691.19,690.79,1.5990164]
[1748480195233,0.28935603,691.19,690.8,1.59846922]
[1748480195446,0.28935603,691.19,690.81,0.56797892]
[1748480195634,0.28935603,691.19,690.82,1.59846727]
[1748480195838,0.28935603,691.19,690.83,0.56797358]
[1748480196033,0.28935603,691.19,690.84,1.03048057]
[1748480196234,0.28935603,691.19,690.85,1.0304918]
[1748480196534,0.28935603,691.19,690.86,1.0304918]
[1748480196738,0.28935603,691.19,690.87,1.03050747]
[1748480197033,0.28935603,691.19,690.88,1.03050747]
[1748480197239,0.28935603,691.19,690.89,1.03033775]
[1748480197437,0.28935603,691.19,690.9,1.03033775]
[1748480197638,0.28935603,691.19,690.91,1.03033775]
[1748480197840,0.28935603,691.19,690.58,0.517]
[1748480197841,0.28935603,691.19,690.92,1.03033775]
[1748480198135,0.28935603,691.19,690.93,1.03031682]
[1748480198340,0.28935603,691.19,690.94,1.03031682]
[1748480198537,0.28935603,691.19,690.58,0.517]
[1748480198738,0.28935603,691.19,690.59,1.59823617]
[1748480198938,0.28935603,691.19,690.58,0.517]
[1748480199440,0.28935603,691.19,690.59,1.59826317]
[1748480199639,0.28935603,691.19,690.6,1.59826103]
[1748480199837,0.28935603,691.19,690.61,1.59826103]
[1748480200034,0.28935603,691.19,690.62,1.59826103]
[1748480200241,0.28935603,691.19,690.63,1.59826163]
[1748480200434,0.28935603,691.19,690.64,1.59826163]
[1748480200636,0.28935603,691.19,690.58,0.517]
[1748480200637,0.28935603,691.19,690.65,1.59825225]
[1748480200845,0.28935603,691.19,690.66,1.59825957]
[1748480201136,0.28935603,691.19,690.67,1.59825957]
[1748480201342,0.28935603,691.19,690.68,1.59825957]
[1748480201642,0.28935603,691.19,690.69,1.59825957]
[1748480201841,0.28935603,691.19,690.7,1.59849794]
[1748480202045,0.28935603,691.19,690.71,1.59849794]
[1748480202342,0.28935603,691.19,690.72,1.59849794]
[1748480202538,0.28935603,691.19,690.73,1.59846782]
[1748480202736,0.28935603,691.19,690.74,1.59847022]
[1748480202939,0.28935603,691.19,690.75,0.5679639]
[1748480203142,0.28935603,691.19,690.76,1.59848347]
[1748480203342,0.28935603,691.19,690.77,1.59848347]
[1748480203542,0.28935603,691.19,690.78,1.59853911]
[1748480203744,0.28935603,691.19,690.79,1.59853911]
[1748480204037,0.28935603,691.19,690.8,1.59854964]
[1748480204243,0.28935603,691.19,690.81,1.59854964]
[1748480204538,0.28935603,691.19,690.82,1.59854964]
[1748480204737,0.28935603,691.19,690.83,1.59854964]
[1748480205039,0.28935603,691.19,690.84,1.59854964]
[1748480205241,0.28935603,691.19,690.85,1.03057834]
[1748480205438,0.28935603,691.19,690.86,1.03058689]
[1748480205642,0.28935603,691.19,690.87,1.03058483]
[1748480205838,0.28935603,691.19,690.88,1.03058483]
[1748480206043,0.28935603,691.19,690.89,1.03058575]
[1748480206240,0.28935603,691.19,690.9,1.03058575]
[1748480206444,0.28935603,691.19,690.91,1.03058575]
[1748480206746,0.28935603,691.19,690.92,1.03058575]
[1748480206944,0.28935603,691.19,690.93,1.03051683]
[1748480207147,0.28935603,691.19,690.58,0.517]
[1748480207344,0.28935603,691.19,690.59,1.59849307]
[1748480207544,0.28935603,691.19,690.58,0.517]
[1748480207545,0.28935603,691.19,690.6,0.56797729]
[1748480207745,0.28935603,691.19,690.61,1.59848516]
[1748480207946,0.28935603,691.19,690.62,1.59848516]
[1748480208143,0.28935603,691.19,690.63,1.59848516]
[1748480208343,0.28935603,691.19,690.64,1.59848516]
[1748480208549,0.28935603,691.19,690.65,1.59848516]
[1748480208846,0.28935603,691.19,690.58,0.517]
[1748480209043,0.28935603,691.19,690.59,1.5983903]
[1748480209243,0.28935603,691.19,690.6,1.03040306]
[1748480209447,0.28935603,691.19,690.61,1.59838743]
[1748480209643,0.28935603,691.19,690.62,1.59838743]
[1748480209843,0.28935603,691.19,690.63,1.59840551]
[1748480210049,0.28935603,691.19,690.64,1.59840551]
[1748480210244,0.28935603,691.19,690.65,1.59840551]
[1748480210549,0.28935603,691.19,690.66,1.59816747]
[1748480210748,0.28935603,691.19,690.67,1.59816747]
[1748480210953,0.28935603,691.19,690.68,1.59811779]
[1748480211254,0.28935603,691.19,690.58,0.517]
[1748480211255,0.28935603,691.19,690.69,1.59811779]
[1748480211450,0.28935603,691.19,690.7,1.59811779]
[1748480211650,0.28935603,691.19,690.71,1.59805571]
[1748480211853,0.28935603,691.19,690.72,1.59805571]
[1748480212051,0.28935603,691.19,690.58,0.517]
[1748480212052,0.28935603,691.19,690.73,1.59804659]
[1748480212346,0.28935603,691.19,690.58,0.517]
[1748480212347,0.28935603,691.19,690.74,1.59815591]
[1748480212650,0.28935603,691.19,690.75,1.59815591]
[1748480212951,0.28935603,691.19,690.76,1.59815768]
[1748480213248,0.28935603,691.19,690.77,1.59815768]
[1748480213445,0.28935603,691.19,690.78,1.59833933]
[1748480213651,0.28935603,691.19,690.79,1.59833933]
[1748480213849,0.28935603,691.19,690.8,1.59833933]
[1748480214049,0.28935603,691.19,690.81,1.59835566]
[1748480214251,0.28935603,691.19,690.82,1.59836642]
[1748480214451,0.28935603,691.19,690.83,1.59836642]
[1748480214652,0.28935603,691.19,690.84,1.59836642]
[1748480214853,0.28935603,691.19,690.85,1.03041448]
[1748480215052,0.28935603,691.19,690.86,1.03033403]
[1748480215250,0.28935603,691.19,690.77,0.56]
[1748480215545,0.28935603,691.19,690.78,1.59842987]
[1748480215749,0.28935603,691.19,690.79,0.56788815]
[1748480215949,0.28935603,691.19,690.8,1.59852498]
[1748480216163,0.28935603,691.19,690.81,1.59850003]
[1748480216348,0.28935603,691.19,690.82,1.59850003]
[1748480216545,0.28935603,691.19,690.83,1.59850003]
[1748480216749,0.28935603,691.19,690.84,1.59850003]
[1748480216951,0.28935603,691.19,690.85,1.03067515]
[1748480217157,0.28935603,691.19,690.86,1.03067515]
[1748480217351,0.28935603,691.19,690.87,1.0306742]
[1748480217559,0.28935603,691.19,690.77,0.56]
[1748480217753,0.28935603,691.19,690.78,1.03067045]
[1748480217951,0.28935603,691.19,690.79,1.59861059]
[1748480218148,0.28935603,691.19,690.8,1.59861059]
[1748480218353,0.28935603,691.19,690.81,1.59861059]
[1748480218551,0.28935603,691.19,690.77,0.56]
[1748480218552,0.28935603,691.19,690.82,1.59861059]
[1748480218753,0.28935603,691.19,690.83,1.59861059]
[1748480218963,0.28935603,691.19,690.84,1.59861059]
[1748480219156,0.28935603,691.19,690.85,1.03067045]
[1748480219350,0.28935603,691.19,690.77,0.56]
[1748480219554,0.28935603,691.19,690.78,1.59841107]
[1748480219754,0.28935603,691.19,690.79,1.59841107]
[1748480219955,0.28935603,691.19,690.8,1.59841107]
[1748480220254,0.28935603,691.19,690.77,0.56]
[1748480220654,0.28935603,691.19,690.78,1.59852275]
[1748480220853,0.28935603,691.19,690.79,1.59852275]
[1748480221054,0.28935603,691.19,690.77,0.56]
[1748480221354,0.28935603,691.19,690.78,1.59851454]
[1748480221654,0.28935603,691.19,690.79,1.59851454]
[1748480221853,0.28935603,691.19,690.8,1.59851454]
[1748480222053,0.28935603,691.19,690.81,1.59851454]
[1748480222356,0.28935603,691.19,690.82,1.59852716]
[1748480222551,0.28935603,691.19,690.83,1.0306345]
[1748480222757,0.28935603,691.19,690.77,0.56]
[1748480223053,0.28935603,691.19,690.78,1.03064633]
[1748480223357,0.28935603,691.19,690.79,1.03064633]
[1748480223556,0.28935603,691.19,690.8,1.5986004]
[1748480223754,0.28935603,691.19,690.77,0.56]
[1748480224152,0.28935603,691.19,690.81,0.56797833]
[1748480224456,0.28935603,691.19,690.82,1.03074822]
[1748480224755,0.28935603,691.19,690.83,1.03074822]
[1748480225055,0.28935603,691.19,690.84,1.03074822]
[1748480225255,0.28935603,691.19,690.85,1.03074822]
[1748480225459,0.28935603,691.19,690.86,1.03074822]
[1748480225654,0.28935603,691.19,690.87,1.03082992]
[1748480225952,0.28935603,691.19,690.88,1.03082441]
[1748480226156,0.28935603,691.19,690.89,1.03082441]
[1748480226357,0.28935603,691.19,690.77,0.56]
[1748480226557,0.28935603,691.19,690.78,1.59882745]
[1748480226754,0.28935603,691.19,690.79,1.03080419]
[1748480227054,0.28935603,691.19,690.77,0.56]
[1748480227259,0.28935603,691.19,690.78,1.03092674]
[1748480227455,0.28935603,691.19,690.79,1.03092674]
[1748480227656,0.28935603,691.19,690.8,1.03092674]
[1748480227860,0.28935603,691.19,690.81,1.03092674]
[1748480228055,0.28935603,691.19,690.82,1.03092674]
[1748480228264,0.28935603,691.19,690.77,0.56]
[1748480228460,0.28935603,691.19,690.78,1.03098852]
[1748480228657,0.28935603,691.19,690.79,1.03098852]
[1748480228855,0.28935603,691.19,690.77,0.56]
[1748480228856,0.28935603,691.19,690.8,1.03098852]
[1748480229161,0.28935603,691.19,690.77,0.56]
[1748480229377,0.28935603,691.19,690.78,1.03100631]
[1748480229662,0.28935603,691.19,690.79,1.03085644]
[1748480229857,0.28935603,691.19,690.8,1.03101654]
[1748480230062,0.28935603,691.19,690.77,0.56]
[1748480230264,0.28935603,691.19,690.78,1.03107915]
[1748480230562,0.28935603,691.19,690.79,1.03089419]
[1748480230764,0.28935603,691.19,690.77,0.56]
[1748480231065,0.28935603,691.19,690.78,1.03088444]
[1748480231364,0.28935603,691.19,690.77,0.56]
[1748480231660,0.28935603,691.19,690.78,1.03082258]
[1748480231862,0.28935603,691.19,690.77,0.56]
[1748480232259,0.28935603,691.19,690.78,1.03080689]
[1748480232461,0.28935603,691.19,690.77,0.56]
[1748480232865,0.28935603,691.19,690.78,1.03062111]
[1748480233069,0.28935603,691.19,690.77,0.56]
[1748480236168,0.28935603,691.19,690.78,1.0302449]
[1748480236469,0.28935603,691.19,690.77,0.56]
[1748480236869,0.28935603,691.19,690.78,1.03016787]
[1748480237070,0.28935603,691.19,690.77,0.56]
[1748480237266,0.28935603,691.19,690.78,1.03014641]
[1748480237571,0.28935603,691.19,690.77,0.56]
[1748480237780,0.28935603,691.19,690.78,1.03009465]
[1748480238070,0.28935603,691.19,690.77,0.56]
[1748480241671,0.28935603,691.19,690.78,1.02934006]
[1748480241875,0.28935603,691.19,690.79,1.02906956]
[1748480242071,0.28935603,691.19,690.77,0.56]
[1748480242276,0.28935603,691.19,690.78,1.02879359]
[1748480242476,0.28935603,691.19,690.79,1.02879359]
[1748480242674,0.28935603,691.19,690.8,1.02879359]
[1748480242974,0.28935603,691.19,690.81,1.02879359]
[1748480243178,0.28935603,691.19,690.82,1.02879359]
[1748480243479,0.28935603,691.19,690.83,1.0287045]
[1748480243677,0.28935603,691.19,690.84,1.02873699]
[1748480243985,0.28935603,691.19,690.85,1.02874641]
[1748480244179,0.28935603,691.19,690.77,0.56]
[1748480244378,0.28935603,691.19,690.78,1.02880094]
[1748480244578,0.28935603,691.19,690.79,1.02880497]
[1748480244779,0.28935603,691.19,690.8,1.02880497]
[1748480245074,0.28935603,691.19,690.81,1.02880497]
[1748480245277,0.28935603,691.19,690.82,1.02880497]
[1748480245479,0.28935603,691.19,690.83,1.02880497]
[1748480245679,0.28935603,691.19,690.84,1.02900369]
[1748480245877,0.28935603,691.19,690.85,1.02905]
[1748480246077,0.28935603,691.19,690.77,0.56]
[1748480246078,0.28935603,691.19,690.86,1.02905]
[1748480246274,0.28935603,691.19,690.77,0.56]
[1748480246478,0.28935603,691.19,690.78,1.02908986]
[1748480246791,0.28935603,691.19,690.77,0.56]
[1748480246792,0.28935603,691.19,690.79,1.02908986]
[1748480246979,0.28935603,691.19,690.77,0.56]
[1748480247178,0.28935603,691.19,690.78,1.02911711]
[1748480247373,0.28935603,691.19,690.77,0.56]
[1748480247580,0.28935603,691.19,690.78,1.02914871]
[1748480247779,0.28935603,691.19,690.79,1.02914871]
[1748480247978,0.28935603,691.19,690.8,1.02914871]
[1748480248175,0.28935603,691.19,690.81,1.02914871]
[1748480248476,0.2513679,691.15,690.82,1.02947276]
[1748480248680,0.28937697,691.14,690.83,1.02949271]
[1748480248877,0.28937697,691.14,690.84,1.02949271]
[1748480249084,0.28937697,691.14,690.85,1.02949271]
[1748480249277,0.28937697,691.14,690.86,1.02949271]
[1748480249479,0.28937697,691.14,690.87,1.02949271]
[1748480249684,0.28937697,691.14,689.62,0.45755228]
[1748480249895,0.28937697,691.14,689.63,1.88682614]
[1748480250078,0.28937697,691.14,689.64,1.88682194]
[1748480250282,0.28937697,691.14,689.65,1.88681874]
[1748480250483,0.28937697,691.14,689.66,1.88681604]
[1748480250679,0.28937697,691.14,689.67,0.85724684]
[1748480250882,0.28937697,691.14,689.68,1.88684676]
[1748480251182,0.28937697,691.14,688.96,0.2513679]
[1748480251183,0.28937697,691.14,689.69,1.88693068]
[1748480251481,0.28937697,691.14,689.7,2.55292648]
[1748480251677,0.28937697,691.14,689.84,0.45755228]
[1748480251880,0.28937697,691.14,689.85,1.59694533]
[1748480252082,0.28937697,691.14,689.86,1.59694533]
[1748480252279,0.28937697,691.14,689.87,1.59672972]
[1748480252480,0.28937697,691.14,689.88,1.59672031]
[1748480252679,0.28937697,691.14,689.89,1.59672031]
[1748480252880,0.28937697,691.14,689.85,0.45755228]
[1748480252881,0.28937697,691.14,689.9,1.59672031]
[1748480253083,0.28937697,691.14,689.91,1.59672031]
[1748480253279,0.28937697,691.14,689.92,1.59672031]
[1748480253483,0.28937697,691.14,689.93,1.59672031]
[1748480253685,0.28937697,691.14,689.94,1.5966788]
[1748480253881,0.28937697,691.14,689.95,1.5966788]
[1748480254188,0.28937697,691.14,689.96,1.59670287]
[1748480254382,0.28937697,691.14,689.97,1.59670287]
[1748480254581,0.28937697,691.14,689.87,0.45755228]
[1748480254582,0.28937697,691.14,689.98,1.59670387]
[1748480254785,0.28937697,691.14,689.99,1.59670387]
[1748480254998,0.28937697,691.14,690.0,1.59670387]
[1748480255178,0.28937697,691.14,690.01,1.59670387]
[1748480255384,0.28937697,691.14,690.02,1.59673443]
[1748480255579,0.28937697,691.14,690.03,1.59673443]
[1748480255883,0.28937697,691.14,689.96,0.45755228]
[1748480255884,0.28937697,691.14,690.04,1.59673443]
[1748480256093,0.28937697,691.14,690.05,1.59673443]
[1748480256281,0.28937697,691.14,689.96,0.45755228]
[1748480256485,0.28937697,691.14,689.97,1.59657045]
[1748480256784,0.28937697,691.14,689.98,1.59657045]
[1748480257085,0.28937697,691.14,689.99,1.59657045]
[1748480257286,0.28937697,691.14,690.0,1.59658825]
[1748480257482,0.28937697,691.14,690.01,1.59658824]
[1748480257688,0.28937697,691.14,690.02,1.59659805]
[1748480257887,0.28937697,691.14,690.03,1.59659679]
[1748480258090,0.28937697,691.14,690.04,1.59659142]
[1748480258282,0.28937697,691.14,690.05,1.59659142]
[1748480258586,0.28937697,691.14,690.06,1.59659142]
[1748480258782,0.28937697,691.14,690.07,1.59659142]
[1748480259101,0.28937697,691.14,690.08,1.59656975]
[1748480259288,0.28937697,691.14,690.09,1.02938011]
[1748480259482,0.28937697,691.14,689.98,0.45755228]
[1748480259694,0.28937697,691.14,689.99,0.56720177]
[1748480259884,0.28937697,691.14,689.98,0.45755228]
[1748480260084,0.28937697,691.14,689.99,1.02938013]
[1748480260283,0.28937697,691.14,689.98,0.45755228]
[1748480260482,0.28937697,691.14,689.99,1.59657402]
[1748480260686,0.28937697,691.14,690.0,1.59657402]
[1748480260883,0.28937697,691.14,690.01,1.59657402]
[1748480261083,0.28937697,691.14,690.02,1.59657402]
[1748480261283,0.28937697,691.14,690.03,1.59657402]
[1748480261487,0.28937697,691.14,690.04,1.59657402]
[1748480261685,0.28937697,691.14,690.05,1.59657402]
[1748480261884,0.28937697,691.14,690.06,1.59656603]
[1748480262084,0.28937697,691.14,690.07,0.56719738]
[1748480262391,0.28937697,691.14,689.7,0.95598115]
[1748480262392,0.28937697,691.14,689.92,0.45755228]
[1748480262589,0.28937697,691.14,689.93,1.59678792]
[1748480262789,0.28937697,691.14,689.94,1.59678792]
[1748480262994,0.28937697,691.14,689.95,1.59678792]
[1748480263192,0.28937697,691.14,689.96,1.59678792]
[1748480263390,0.28937697,691.14,689.97,0.56731417]
[1748480263587,0.28937697,691.14,689.98,1.59695465]
[1748480263789,0.28937697,691.14,689.99,1.59695465]
[1748480263991,0.28937697,691.14,690.0,1.59695465]
[1748480264292,0.28937697,691.14,690.01,1.59695465]
[1748480264486,0.28937697,691.14,690.02,1.59695465]
[1748480264690,0.28937697,691.14,690.03,1.59695465]
[1748480264893,0.28937697,691.14,690.04,1.59695465]
[1748480265187,0.28937697,691.14,690.05,1.59682313]
[1748480265389,0.28937697,691.14,690.06,1.59682313]
[1748480265593,0.28937697,691.14,690.07,1.59682313]
[1748480265887,0.28937697,691.14,689.88,0.45755228]
[1748480266695,0.28937697,691.14,689.87,0.45755228]
[1748480266888,0.28937697,691.14,689.88,2.05492661]
[1748480267190,0.28937697,691.14,689.89,1.0248343]
[1748480267395,0.28937697,691.14,689.9,1.02942924]
[1748480267594,0.28937697,691.14,689.89,1.0248343]
[1748480267595,0.28937697,691.14,689.91,1.02943078]
[1748480267789,0.28937697,691.14,689.92,1.02943088]
[1748480267990,0.28937697,691.14,689.89,1.0248343]
[1748480268498,0.28937697,691.14,689.9,1.12517049]
[1748480268798,0.28937697,691.14,689.91,1.59667035]
[1748480268993,0.28937697,691.14,689.92,1.59667035]
[1748480269193,0.28937697,691.14,689.93,1.59667035]
[1748480269494,0.28937697,691.14,689.94,1.59667035]
[1748480269791,0.28937697,691.14,689.95,1.59641805]
[1748480269993,0.28937697,691.14,689.96,1.59641805]
[1748480270195,0.28937697,691.14,689.9,0.558]
[1748480270391,0.28937697,691.14,689.91,1.59646909]
[1748480270593,0.28937697,691.14,689.92,1.59646909]
[1748480270797,0.28937697,691.14,689.93,1.59646393]
[1748480271094,0.28937697,691.14,689.94,1.59653065]
[1748480271290,0.28937697,691.14,689.95,1.59653065]
[1748480271493,0.28937697,691.14,689.96,1.59653065]
[1748480271690,0.28937697,691.14,690.08,0.45755228]
[1748480271889,0.28937697,691.14,690.1,0.45755228]
[1748480272093,0.28937697,691.14,690.11,1.0292996]
[1748480272289,0.28937697,691.14,690.12,1.5965383]
[1748480272495,0.28937697,691.14,690.13,1.59655651]
[1748480272691,0.28937697,691.14,690.09,0.45755228]
[1748480272692,0.28937697,691.14,690.14,1.596549]
[1748480272892,0.28937697,691.14,690.15,1.59658187]
[1748480273089,0.28937697,691.14,690.16,1.59658187]
[1748480273290,0.28937697,691.14,690.17,1.59658187]
[1748480273494,0.28937697,691.14,690.18,1.59658187]
[1748480273691,0.28937697,691.14,690.19,1.02934391]
[1748480273994,0.28937697,691.14,690.2,1.5966354]
[1748480274293,0.28937697,691.14,690.21,1.5966354]
[1748480274494,0.28937697,691.14,690.22,1.5966354]
[1748480274695,0.28937697,691.14,689.9,0.558]